bitfinex/quotes_BTCUSD_20251029
["timestamp","ask_amount","ask_price","bid_price","bid_amount"]
[1761729572111,0.00118941,113150.0,113140.0,0.6908121]
[1761729572872,0.00118941,113150.0,113140.0,0.6898121]
[1761729573283,0.00118941,113150.0,113140.0,0.6908121]
[1761729573495,0.00318941,113150.0,113140.0,0.6908121]
[1761729573700,0.00318941,113150.0,113140.0,0.73904191]
[1761729573941,0.00318941,113150.0,113140.0,1.11074286]
[1761729574541,0.00318941,113150.0,113140.0,1.46074285]
[1761729576134,0.00118941,113150.0,113140.0,1.52347931]
[1761729576343,0.00118941,113150.0,113140.0,1.52247931]
[1761729576557,1e-08,113150.0,113140.0,1.90618025]
[1761729576774,1e-08,113150.0,113140.0,1.97172446]
[1761729578134,1e-08,113150.0,113140.0,0.85662161]
[1761729578351,1e-08,113150.0,113140.0,1.90818025]
[1761729579051,1e-08,113150.0,113140.0,1.97395354]
[1761729580220,1e-08,113150.0,113140.0,1.90818025]
[1761729581064,1e-08,113150.0,113140.0,1.89818026]
[1761729581273,1e-08,113150.0,113140.0,1.90818025]
[1761729581711,1e-08,113150.0,113140.0,1.97313841]
[1761729583231,1e-08,113150.0,113140.0,0.78307741]
[1761729583351,1e-08,113150.0,113140.0,1.07036627]
[1761729583558,1e-08,113150.0,113140.0,1.04381209]
[1761729584185,1e-08,113150.0,113140.0,1.41551304]
[1761729584828,1e-08,113150.0,113140.0,0.67211114]
[1761729585031,1e-08,113150.0,113140.0,1.04381209]
[1761729585499,1e-08,113150.0,113140.0,1.51533204]
[1761729586473,1e-08,113150.0,113140.0,1.55151432]
[1761729586877,1e-08,113150.0,113140.0,1.57806718]
[1761729587083,1e-08,113160.0,113150.0,1.3225384]
[1761729587266,1e-08,113160.0,113150.0,1.41235741]
[1761729587619,1e-08,113160.0,113150.0,0.71064915]
[1761729589018,1e-08,113160.0,113150.0,0.74783143]
[1761729589443,1e-08,113160.0,113150.0,0.75783142]
[1761729589842,1e-08,113160.0,113150.0,0.75683142]
[1761729590040,1e-08,113160.0,113150.0,0.78338118]
[1761729590244,1e-08,113160.0,113150.0,0.78538118]
[1761729590465,1e-08,113160.0,113150.0,0.75883142]
[1761729590684,1e-08,113160.0,113150.0,0.76083142]
[1761729590841,1e-08,113160.0,113150.0,0.75083143]
[1761729591026,1e-08,113160.0,113150.0,0.76083142]
[1761729591630,1e-08,113160.0,113150.0,0.75683142]
[1761729592080,1e-08,113160.0,113150.0,0.76283142]
[1761729592488,1e-08,113160.0,113150.0,0.75283143]
[1761729592718,1e-08,113160.0,113150.0,0.76283142]
[1761729595443,1e-08,113160.0,113150.0,0.75283143]
[1761729595679,1e-08,113160.0,113150.0,0.76283142]
[1761729603262,1e-08,113160.0,113150.0,0.75283143]
[1761729603738,1e-08,113160.0,113150.0,0.76283142]
[1761729604374,1e-08,113160.0,113150.0,0.75283143]
[1761729604593,1e-08,113160.0,113150.0,0.82637563]
[1761729605034,1e-08,113160.0,113150.0,0.82991549]
[1761729609886,1e-08,113160.0,113150.0,0.79019335]
[1761729610142,1e-08,113160.0,113150.0,0.72664914]
[1761729610780,1e-08,113160.0,113150.0,0.72464914]
[1761729610997,1e-08,113160.0,113150.0,0.72064914]
[1761729611245,1e-08,113160.0,113150.0,0.72264914]
[1761729611460,1e-08,113160.0,113150.0,0.72464914]
[1761729615370,1e-08,113160.0,113150.0,0.78819335]
[1761729617117,0.18908976,113200.0,113190.0,0.17669405]
[1761729617343,0.18921808,113200.0,113190.0,0.29376306]
[1761729617557,0.00012832,113200.0,113190.0,0.31839306]
[1761729617776,0.37182927,113200.0,113190.0,0.31839306]
[1761729618457,0.00012832,113200.0,113190.0,0.31839306]
[1761729618669,0.00512832,113200.0,113190.0,0.31939306]
[1761729618879,0.37682927,113200.0,113190.0,0.31939306]
[1761729619388,0.00512832,113200.0,113190.0,0.31939306]
[1761729622828,0.00597651,113200.0,113190.0,0.31939306]
[1761729625018,0.00597651,113200.0,113190.0,0.69109401]
[1761729625434,0.00597651,113200.0,113190.0,0.31939306]
[1761729629799,0.00597651,113200.0,113190.0,0.69065829]
[1761729630824,0.00097651,113200.0,113190.0,0.68965829]
[1761729631027,0.00097651,113200.0,113190.0,0.77846208]
[1761729631232,0.00297651,113200.0,113190.0,0.77846208]
[1761729633534,0.00297651,113200.0,113190.0,1.14972731]
[1761729635064,0.00297651,113200.0,113190.0,1.53590958]
[1761729635274,3.0,113240.0,113230.0,0.17661665]
[1761729635508,0.00014506,113240.0,113230.0,0.29368566]
[1761729635752,0.00014506,113240.0,113230.0,0.31831566]
[1761729636190,0.17676109,113240.0,113230.0,0.31831566]
[1761729637050,0.18176109,113240.0,113230.0,0.31931566]
[1761729638986,0.19802109,113240.0,113230.0,0.31931566]
[1761729641135,0.19886884,113240.0,113230.0,0.31931566]
[1761729641770,0.20256884,113240.0,113230.0,0.29468566]
[1761729642750,0.20256884,113240.0,113230.0,0.31887566]
[1761729648769,0.94661302,113240.0,113230.0,0.09081901]
[1761729648980,3.9827953,113240.0,113230.0,0.001]
[1761729649408,4.02834577,113240.0,113230.0,0.001]
[1761729650320,4.03659448,113240.0,113230.0,0.001]
[1761729652880,0.17666177,113220.0,113200.0,0.22137236]
[1761729653087,0.92414222,113220.0,113210.0,0.08981901]
[1761729653298,0.96014222,113220.0,113210.0,0.08981901]
[1761729653515,0.97640222,113220.0,113210.0,0.08981901]
[1761729653736,1.00337393,113220.0,113210.0,0.08981901]
[1761729653940,0.17666283,113210.0,113200.0,0.22137236]
[1761729654151,0.20515283,113210.0,113200.0,0.30201137]
[1761729654353,0.20536482,113210.0,113200.0,0.30201137]
[1761729654566,0.20536482,113210.0,113200.0,0.32620137]
[1761729654794,0.23191348,113210.0,113200.0,0.32620137]
[1761729655861,0.23191348,113210.0,113200.0,0.30201137]
[1761729656678,0.32191348,113210.0,113200.0,0.30301137]
[1761729656847,0.32191348,113210.0,113200.0,0.32720137]
[1761729658095,0.32191348,113210.0,113200.0,0.30301137]
[1761729658351,3.71694871,113210.0,113200.0,0.09081901]
[1761729659333,3.71694871,113210.0,113200.0,0.08981901]
[1761729660519,3.71894871,113210.0,113200.0,0.08981901]
[1761729661351,4.05894871,113210.0,113200.0,0.08981901]
[1761729663673,4.06778185,113210.0,113180.0,0.21336404]
[1761729663890,0.17669405,113190.0,113180.0,0.22837531]
[1761729664224,0.58395725,113200.0,113180.0,0.22837531]
[1761729664422,0.17669405,113190.0,113180.0,0.22837531]
[1761729664697,0.58395725,113200.0,113180.0,0.22837531]
[1761729665076,0.17669405,113190.0,113180.0,0.22850363]
[1761729665505,0.17669405,113190.0,113180.0,0.23050363]
[1761729665704,0.17669405,113190.0,113180.0,0.22850363]
[1761729665901,0.17669405,113190.0,113180.0,0.22950363]
[1761729666803,0.19295405,113190.0,113180.0,0.22950363]
[1761729667034,0.19295405,113190.0,113180.0,0.23134363]
[1761729667201,0.19735405,113190.0,113180.0,0.03060397]
[1761729667417,0.19735405,113190.0,113180.0,0.20731363]
[1761729667654,0.19735405,113190.0,113180.0,0.20231363]
[1761729667845,0.19735405,113190.0,113180.0,0.20131363]
[1761729668201,0.19735405,113190.0,113180.0,0.20031363]
[1761729669902,0.21269202,113200.0,113190.0,0.17669405]
[1761729670155,0.21269202,113200.0,113180.0,0.22434363]
[1761729670805,0.21269202,113200.0,113180.0,0.22334363]
[1761729671474,0.21269202,113200.0,113190.0,0.17669405]
[1761729671685,0.21469202,113200.0,113180.0,0.22334363]
[1761729671903,0.17669405,113190.0,113180.0,0.22334363]
[1761729672119,0.21269202,113200.0,113180.0,0.22334363]
[1761729672331,0.21469202,113200.0,113180.0,0.22334363]
[1761729673417,0.17669405,113190.0,113180.0,0.22334363]
[1761729673644,0.17669405,113190.0,113180.0,0.31316264]
[1761729674896,0.21269202,113200.0,113180.0,0.31316264]
[1761729675113,0.21269202,113200.0,113190.0,0.08981901]
[1761729675545,0.22859202,113200.0,113190.0,0.08981901]
[1761729676159,0.23059202,113200.0,113190.0,0.08981901]
[1761729676368,0.22859202,113200.0,113190.0,0.08981901]
[1761729677414,0.59985725,113200.0,113190.0,0.08981901]
[1761729678072,3.59985725,113200.0,113190.0,0.08981901]
[1761729678279,3.96640988,113200.0,113190.0,0.08981901]
[1761729678488,3.96840988,113200.0,113190.0,0.08981901]
[1761729679508,3.59714465,113200.0,113190.0,0.08981901]
[1761729679755,3.96840988,113200.0,113190.0,0.08981901]
[1761729680774,3.96840988,113200.0,113190.0,0.08481901]
[1761729681184,3.98743393,113200.0,113190.0,0.08481901]
[1761729681825,0.17669405,113190.0,113180.0,0.00759397]
[1761729682027,0.17669405,113190.0,113180.0,0.08994733]
[1761729682028,0.59835928,113190.0,113180.0,0.08994733]
[1761729682239,0.93835928,113190.0,113180.0,0.08994733]
[1761729682449,0.96491383,113190.0,113180.0,0.08994733]
[1761729683884,0.96491383,113190.0,113180.0,0.09094733]
[1761729684519,3.96491383,113190.0,113180.0,0.08994733]
[1761729684729,3.96491383,113190.0,113180.0,0.00012832]
[1761729684939,4.02012572,113190.0,113180.0,0.00012832]
[1761729685353,4.02212572,113190.0,113180.0,0.00012832]
[1761729685555,4.02012572,113190.0,113180.0,0.00012832]
[1761729685969,4.02412572,113190.0,113180.0,0.00112832]
[1761729686798,4.39539095,113190.0,113180.0,0.00112832]
[1761729687205,4.02412572,113190.0,113180.0,0.00112832]
[1761729687405,4.39599559,113190.0,113180.0,0.00112832]
[1761729687633,4.40425487,113190.0,113180.0,0.00112832]
[1761729688059,4.42800357,113190.0,113180.0,0.00112832]
[1761729688272,4.42803869,113190.0,113180.0,0.00112832]
[1761729688685,4.45960205,113190.0,113180.0,0.00112832]
[1761729689308,4.54942106,113190.0,113180.0,0.00112832]
[1761729689515,4.52563582,113190.0,113180.0,0.00112832]
[1761729689719,4.52563582,113190.0,113140.0,0.00747]
[1761729689720,0.17675651,113150.0,113140.0,0.00747]
[1761729689940,0.17675651,113150.0,113140.0,0.09777291]
[1761729689941,0.57550406,113150.0,113140.0,0.09777291]
[1761729690164,0.94045406,113150.0,113140.0,0.09777291]
[1761729690399,0.96701706,113150.0,113140.0,0.09862155]
[1761729690997,0.59544951,113150.0,113140.0,0.09962155]
[1761729691207,0.59544951,113150.0,113140.0,0.09215155]
[1761729691424,0.6044595,113150.0,113140.0,0.09215155]
[1761729691851,0.6044595,113150.0,113140.0,0.09315155]
[1761729693812,0.6044595,113150.0,113140.0,0.10845155]
[1761729694448,0.6044595,113150.0,113140.0,0.09315155]
[1761729695781,3.97602705,113150.0,113140.0,0.09315155]
[1761729696664,3.97602705,113150.0,113140.0,0.00233254]
[1761729697915,3.97602705,113150.0,113140.0,0.00133254]
[1761729698129,3.97702705,113150.0,113140.0,0.00233254]
[1761729700921,4.01320933,113150.0,113140.0,0.00233254]
[1761729706340,4.03216821,113150.0,113140.0,0.00233254]
[1761729709200,3.66060066,113150.0,113140.0,0.00233254]
[1761729709403,4.03216821,113150.0,113140.0,0.00233254]
[1761729712885,4.40373576,113150.0,113140.0,0.00233254]
[1761729714228,4.41198199,113150.0,113140.0,0.00233254]
[1761729716360,4.43575345,113150.0,113140.0,0.00233254]
[1761729718580,4.52575345,113150.0,113140.0,0.00233254]
[1761729719853,4.55731681,113150.0,113140.0,0.00233254]
[1761729720472,4.53354535,113150.0,113140.0,0.00233254]
[1761729720686,4.58089055,113150.0,113140.0,0.00233254]
[1761729720891,4.92089474,113150.0,113140.0,0.00233254]
[1761729721093,4.54932719,113150.0,113140.0,0.00233254]
[1761729721506,4.54932719,113150.0,113140.0,0.00133254]
[1761729721507,5.11989474,113150.0,113140.0,0.00133254]
[1761729721712,5.20971375,113150.0,113140.0,0.00233254]
[1761729721917,5.16436855,113150.0,113140.0,0.00233254]
[1761729722138,5.21193212,113150.0,113140.0,0.00233254]
[1761729722492,5.36536855,113150.0,113140.0,0.00233254]
[1761729723401,5.36336855,113150.0,113140.0,0.00133254]
[1761729723618,5.36836855,113150.0,113140.0,0.00233254]
[1761729724262,5.41593051,113150.0,113140.0,0.00233254]
[1761729724470,5.36836855,113150.0,113140.0,0.00233254]
[1761729725151,5.41592874,113150.0,113140.0,0.00233254]
[1761729727101,0.21298567,113120.0,113110.0,0.00787]
[1761729727322,3.99745965,113120.0,113110.0,0.09034743]
[1761729727540,3.99745965,113120.0,113110.0,0.00052842]
[1761729727541,4.36179965,113120.0,113110.0,0.00052842]
[1761729727757,4.38557471,113120.0,113110.0,0.00052842]
[1761729728401,4.75714226,113120.0,113110.0,0.00052842]
[1761729728614,4.39382622,113120.0,113110.0,0.00052842]
[1761729729043,4.4255263,113120.0,113110.0,0.00052842]
[1761729729664,3.6823912,113120.0,113110.0,0.00052842]
[1761729730077,4.4255263,113120.0,113110.0,0.00052842]
[1761729730297,4.39482622,113120.0,113110.0,0.00352842]
[1761729730704,4.39382622,113120.0,113110.0,0.00052842]
[1761729730933,4.39382622,113120.0,113110.0,0.00152842]
[1761729731129,4.38857471,113120.0,113110.0,0.00152842]
[1761729733054,4.38857471,113120.0,113110.0,0.00216518]
[1761729739474,4.36479965,113120.0,113110.0,0.00216518]
[1761729740203,4.38857471,113120.0,113110.0,0.00216518]
[1761729740528,4.36479965,113120.0,113110.0,0.00216518]
[1761729746141,4.38857471,113120.0,113110.0,0.00216518]
[1761729747396,4.01745746,113120.0,113110.0,0.00216518]
[1761729749306,3.97472352,113120.0,113110.0,0.00216518]
[1761729749463,4.01750234,113120.0,113110.0,0.00216518]
[1761729751963,3.97064832,113120.0,113110.0,0.00216518]
[1761729752230,3.78141157,113120.0,113110.0,0.00216518]
[1761729752375,3.93444895,113120.0,113110.0,0.00216518]
[1761729753172,3.95821496,113120.0,113110.0,0.00216518]
[1761729754440,3.99439724,113120.0,113110.0,0.00216518]
[1761729755788,4.36641509,113120.0,113110.0,0.00216518]
[1761729756197,4.02609732,113120.0,113110.0,0.00216518]
[1761729757255,4.02709732,113120.0,113110.0,0.00216518]
[1761729758124,4.02709732,113120.0,113110.0,0.00116518]
[1761729758125,4.00033131,113120.0,113110.0,0.00116518]
[1761729758281,4.02690852,113120.0,113110.0,0.00116518]
[1761729758477,4.03090852,113120.0,113110.0,0.00216518]
[1761729762301,4.04675856,113120.0,113110.0,0.00216518]
[1761729762484,4.07848978,113120.0,113110.0,0.00216518]
[1761729763020,4.45050763,113120.0,113110.0,0.00216518]
[1761729765607,4.47801522,113120.0,113110.0,0.00216518]
[1761729766673,4.10599737,113120.0,113110.0,0.00216518]
[1761729767754,3.73397952,113120.0,113110.0,0.00216518]
[1761729767975,4.10599737,113120.0,113110.0,0.00216518]
[1761729768193,4.07848978,113120.0,113110.0,0.00216518]
[1761729769921,3.70647193,113120.0,113110.0,0.00216518]
[1761729770129,4.07848978,113120.0,113110.0,0.00216518]
[1761729770335,4.05191257,113120.0,113110.0,0.00216518]
[1761729780547,4.76921162,113120.0,113110.0,0.00216518]
[1761729780767,4.76921162,113120.0,113070.0,0.0004]
[1761729780768,3.85751991,113080.0,113070.0,0.0004]
[1761729781003,3.88059991,113080.0,113070.0,0.09030444]
[1761729781238,3.90414991,113080.0,113070.0,0.09030444]
[1761729781441,3.90414991,113080.0,113070.0,0.09115386]
[1761729782364,3.90614991,113080.0,113070.0,0.09715386]
[1761729783965,3.9149895,113080.0,113070.0,0.09715386]
[1761729786441,3.9149895,113080.0,113070.0,0.00733485]
[1761729786639,3.93401903,113080.0,113070.0,0.00733485]
[1761729789856,3.56200118,113080.0,113070.0,0.00733485]
[1761729790085,3.93401903,113080.0,113070.0,0.00733485]
[1761729797749,3.93400341,113080.0,113070.0,0.00733485]
[1761729805325,3.53064556,113080.0,113070.0,0.14854386]
[1761729805530,0.51886593,113080.0,113070.0,0.32542543]
[1761729806055,0.90733378,113080.0,113070.0,0.14854386]
[1761729806266,0.90733378,113080.0,113070.0,0.32542543]
[1761729806463,0.90733378,113080.0,113070.0,0.14854386]
[1761729806689,0.90733378,113080.0,113070.0,0.32542543]
[1761729808102,0.91931378,113080.0,113070.0,0.30173543]
[1761729808301,0.91931378,113080.0,113070.0,0.12485386]
[1761729808519,0.91931378,113080.0,113070.0,0.30173543]
[1761729808709,0.92835141,113080.0,113070.0,0.30173543]
[1761729809321,1.30068154,113080.0,113070.0,0.30173543]
[1761729809525,0.55633356,113080.0,113070.0,0.30173543]
[1761729809730,0.90007755,113080.0,113070.0,0.32542543]
[1761729811904,0.89103992,113080.0,113070.0,0.32542543]
[1761729812628,0.89989126,113080.0,113070.0,0.32542543]
[1761729813210,1.28851525,113080.0,113070.0,0.32542543]
[1761729813811,1.28851525,113080.0,113070.0,0.12485386]
[1761729814217,1.32470525,113080.0,113070.0,0.09715386]
[1761729816839,1.32470525,113080.0,113070.0,0.27403543]
[1761729817045,1.32470525,113080.0,113070.0,0.09715386]
[1761729818558,1.32470525,113080.0,113070.0,0.27403543]
[1761729818761,1.30049525,113080.0,113070.0,0.30126543]
[1761729819043,1.29164391,113080.0,113070.0,0.30126543]
[1761729819251,1.26321391,113080.0,113070.0,0.32496543]
[1761729820869,1.31606391,113080.0,113070.0,0.09715386]
[1761729822258,1.32502358,113080.0,113070.0,0.11290386]
[1761729822479,1.30023358,113080.0,113070.0,0.12438386]
[1761729824319,1.31928877,113080.0,113070.0,0.12438386]
[1761729824729,0.57494079,113080.0,113070.0,0.30126543]
[1761729824927,1.31928877,113080.0,113070.0,0.30126543]
[1761729827391,4.34407877,113080.0,113070.0,0.09715386]
[1761729829938,4.34407877,113080.0,113070.0,0.27403543]
[1761729830767,4.34407877,113080.0,113070.0,0.30061655]
[1761729832439,4.34407877,113080.0,113070.0,0.12373498]
[1761729832852,4.34407877,113080.0,113070.0,0.30061655]
[1761729833053,3.97190478,113080.0,113070.0,0.31636655]
[1761729833258,4.31928877,113080.0,113070.0,0.32784655]
[1761729834313,4.34407877,113080.0,113070.0,0.32784655]
[1761729835153,4.11700317,113080.0,113070.0,0.32784655]
[1761729835368,3.91009511,113080.0,113070.0,0.35154655]
[1761729835779,0.91009511,113080.0,113070.0,0.35154655]
[1761729835991,1.2822691,113080.0,113070.0,0.35154655]
[1761729838256,1.29113628,113080.0,113070.0,0.35154655]
[1761729839371,1.31919628,113080.0,113070.0,0.32784655]
[1761729839493,1.34398628,113080.0,113070.0,0.32784655]
[1761729839697,1.31919628,113080.0,113070.0,0.32784655]
[1761729839909,1.3103291,113080.0,113070.0,0.32784655]
[1761729840143,1.2822691,113080.0,113070.0,0.35154655]
[1761729841665,0.36105519,113080.0,113070.0,0.35154655]
[1761729841863,0.342,113080.0,113070.0,0.35154655]
[1761729842271,0.002,113080.0,113070.0,0.35154655]
[1761729842469,0.092,113080.0,113070.0,0.35154655]
[1761729844872,0.092,113080.0,113070.0,0.72372054]
[1761729845106,0.092,113080.0,113070.0,0.35154655]
[1761729847422,0.092,113080.0,113070.0,0.81353955]
[1761729848071,0.092,113080.0,113070.0,0.44136556]
[1761729848266,0.092,113080.0,113070.0,0.72372054]
[1761729849108,0.092,113080.0,113070.0,0.35154655]
[1761729849573,0.092,113080.0,113070.0,0.72372054]
[1761729852445,3.0,113090.0,113080.0,0.19285593]
[1761729852652,3.0,113090.0,113080.0,0.31756494]
[1761729853291,3.0,113090.0,113080.0,0.34413869]
[1761729854736,0.37317399,113090.0,113080.0,0.34813869]
[1761729855429,0.38839399,113090.0,113080.0,0.34813869]
[1761729856574,0.37317399,113090.0,113080.0,0.34813869]
[1761729858003,0.37317399,113090.0,113080.0,0.3487757]
[1761729858583,0.001,113090.0,113080.0,0.3487757]
[1761729858782,0.37317399,113090.0,113080.0,0.3487757]
[1761729861555,0.001,113090.0,113080.0,0.3487757]
[1761729861776,0.37317399,113090.0,113080.0,0.3487757]
[1761729863941,0.001,113090.0,113080.0,0.3487757]
[1761729864200,0.37317399,113090.0,113080.0,0.3487757]
[1761729866402,0.001,113090.0,113080.0,0.3487757]
[1761729872091,0.001,113090.0,113080.0,0.72078164]
[1761729873242,0.001,113090.0,113080.0,0.72178164]
[1761729873655,3.01908051,113120.0,113110.0,0.17681902]
[1761729873831,3.0,113120.0,113110.0,0.29296803]
[1761729874031,3.0,113120.0,113110.0,0.31637803]
[1761729874457,3.17680339,113120.0,113110.0,0.34294792]
[1761729874669,3.0,113120.0,113110.0,0.34294792]
[1761729874887,3.37200594,113120.0,113110.0,0.34294792]
[1761729875133,3.37300594,113120.0,113110.0,0.34694792]
[1761729875383,3.38822594,113120.0,113110.0,0.34694792]
[1761729875803,3.46300594,113120.0,113110.0,0.34694792]
[1761729879889,3.091,113120.0,113110.0,0.34694792]
[1761729880043,3.001,113120.0,113110.0,0.34694792]
[1761729883920,0.001,113120.0,113110.0,0.40037999]
[1761729884123,0.001,113120.0,113110.0,0.34694792]
[1761729886395,0.71200594,113140.0,113130.0,0.17678776]
[1761729886598,3.90465306,113140.0,113130.0,0.29300677]
[1761729887238,3.91369399,113140.0,113130.0,0.29300677]
[1761729887865,3.91469399,113140.0,113130.0,0.29600677]
[1761729888847,3.73792185,113140.0,113130.0,0.31914677]
[1761729889535,3.71315092,113140.0,113130.0,0.31914677]
[1761729889712,3.88992306,113140.0,113130.0,0.31914677]
[1761729891498,3.89860278,113140.0,113130.0,0.31914677]
[1761729891986,3.91433278,113140.0,113130.0,0.31914677]
[1761729895723,3.54232684,113140.0,113130.0,0.31914677]
[1761729895973,3.91433278,113140.0,113130.0,0.31914677]
[1761729899699,3.72888092,113140.0,113130.0,0.31914677]
[1761729899906,3.71315092,113140.0,113130.0,0.31914677]
[1761729900139,3.00114498,113140.0,113130.0,0.31914677]
[1761729900627,3.00114498,113140.0,113130.0,0.36983137]
[1761729900855,0.00114498,113140.0,113130.0,0.36983137]
[1761729901549,0.00114498,113140.0,113130.0,0.69115271]
[1761729901787,0.00114498,113140.0,113130.0,0.31914677]
[1761729902012,0.00114498,113140.0,113130.0,0.71771105]
[1761729902734,0.00014498,113140.0,113130.0,1.09671698]
[1761729902967,0.00014498,113140.0,113130.0,1.09771698]
[1761729903221,1e-08,113140.0,113130.0,1.22871827]
[1761729903452,0.00826361,113180.0,113170.0,0.17672528]
[1761729903736,0.34048389,113180.0,113170.0,0.29265429]
[1761729903962,0.34048389,113180.0,113170.0,0.31579429]
[1761729904618,0.34048389,113180.0,113170.0,0.36610841]
[1761729905076,0.93795949,113180.0,113170.0,0.27716429]
[1761729905522,0.93795949,113180.0,113170.0,0.29265429]
[1761729905797,3.9467224,113180.0,113170.0,0.08981901]
[1761729905988,3.9477224,113180.0,113170.0,0.08981901]
[1761729906619,3.9477224,113180.0,113170.0,0.26654429]
[1761729906832,3.9467224,113180.0,113170.0,0.26654429]
[1761729907038,3.9497224,113180.0,113170.0,0.26754429]
[1761729907452,3.9497224,113180.0,113170.0,0.09081901]
[1761729910251,3.95797321,113180.0,113170.0,0.09081901]
[1761729910693,3.95797376,113180.0,113170.0,0.09081901]
[1761729910932,3.98453064,113180.0,113170.0,0.09081901]
[1761729911391,4.39271886,113180.0,113170.0,0.001]
[1761729911603,4.41172865,113180.0,113170.0,0.001]
[1761729911806,4.4355322,113180.0,113170.0,0.001]
[1761729912079,4.6355322,113180.0,113170.0,0.001]
[1761729912290,4.66726623,113180.0,113170.0,0.001]
[1761729912843,3.0,113140.0,113130.0,0.21934714]
[1761729913053,0.54877808,113140.0,113130.0,0.30916615]
[1761729913258,0.54877808,113140.0,113130.0,0.32424615]
[1761729913686,0.17677214,113140.0,113130.0,0.32424615]
[1761729913894,0.54877808,113140.0,113130.0,0.32424615]
[1761729914509,0.6276333,113140.0,113130.0,0.32424615]
[1761729915168,0.27096736,113140.0,113130.0,0.32424615]
[1761729915369,3.6557433,113140.0,113130.0,0.11951901]
[1761729915596,3.6804133,113140.0,113130.0,0.28222677]
[1761729915998,3.6804133,113140.0,113130.0,0.10543901]
[1761729916238,3.30840736,113140.0,113130.0,0.10543901]
[1761729916452,3.6804133,113140.0,113130.0,0.09481901]
[1761729919281,3.60155808,113140.0,113130.0,0.27160677]
[1761729919482,3.60155808,113140.0,113130.0,0.09481901]
[1761729921002,3.94155808,113140.0,113130.0,0.005]
[1761729921449,3.96812639,113140.0,113130.0,0.005]
[1761729921870,3.96812639,113140.0,113130.0,0.004]
[1761729922083,0.16086776,113130.0,113120.0,0.1874231]
[1761729922284,0.5482137,113130.0,113120.0,0.29246709]
[1761729922729,0.57478201,113130.0,113120.0,0.29246709]
[1761729924043,0.39857425,113130.0,113120.0,0.29246709]
[1761729924244,0.51677214,113140.0,113130.0,0.17678776]
[1761729924458,0.5433369,113140.0,113130.0,0.31540677]
[1761729925860,0.5443369,113140.0,113130.0,0.31840677]
[1761729926306,0.51777214,113140.0,113130.0,0.31840677]
[1761729930799,0.341,113140.0,113130.0,0.31840677]
[1761729932270,0.001,113140.0,113130.0,0.31840677]
[1761729933261,0.3727367,113140.0,113130.0,0.31840677]
[1761729934644,0.001,113140.0,113130.0,0.69014347]
[1761729935767,0.54849381,113150.0,113140.0,0.22557214]
[1761729935975,0.54849381,113150.0,113140.0,0.31539115]
[1761729936402,0.54849321,113150.0,113140.0,0.31539115]
[1761729936591,0.3717367,113150.0,113140.0,0.31539115]
[1761729937476,0.3717367,113150.0,113140.0,0.31639115]
[1761729937687,0.3727367,113150.0,113140.0,0.31639115]
[1761729938563,0.3717367,113150.0,113140.0,0.31539115]
[1761729938799,0.001,113150.0,113140.0,0.31839115]
[1761729939042,0.001,113150.0,113140.0,0.69012785]
[1761729939279,0.001,113150.0,113140.0,1.06186455]
[1761729940152,0.001,113150.0,113140.0,0.69012785]
[1761729940601,0.3717367,113170.0,113160.0,0.17674089]
[1761729940821,0.3717367,113170.0,113160.0,0.2822099]
[1761729940996,0.3717367,113170.0,113160.0,0.3166299]
[1761729941710,0.37222059,113170.0,113160.0,0.3166299]
[1761729942085,0.37322059,113170.0,113160.0,0.3196299]
[1761729942524,0.00148389,113170.0,113160.0,0.3196299]
[1761729944332,0.01911293,113170.0,113160.0,0.3196299]
[1761729944756,0.00148389,113170.0,113160.0,0.3196299]
[1761729947375,0.37322059,113170.0,113160.0,0.3196299]
[1761729948960,0.56615587,113170.0,113160.0,0.2958299]
[1761729949638,0.37322059,113170.0,113160.0,0.3196299]
[1761729951676,0.54994587,113170.0,113160.0,0.3196299]
[1761729955574,0.56615587,113170.0,113160.0,0.3196299]
[1761729955769,0.19441917,113170.0,113160.0,0.3196299]
[1761729955974,0.56615587,113170.0,113160.0,0.3196299]
[1761729957931,0.17820917,113170.0,113160.0,0.3196299]
[1761729958132,0.00148389,113170.0,113160.0,0.3196299]
[1761729958572,0.17820917,113170.0,113160.0,0.3196299]
[1761729959693,0.00148389,113170.0,113160.0,0.3196299]
[1761729960318,0.17820917,113170.0,113160.0,0.3196299]
[1761729961577,0.00148389,113170.0,113160.0,0.3196299]
[1761729964280,0.37322059,113170.0,113160.0,0.3196299]
[1761729964691,0.00148389,113170.0,113160.0,0.6913666]
[1761729964918,0.00148389,113170.0,113160.0,0.3196299]
[1761729976464,0.37322059,113170.0,113160.0,0.3196299]
[1761729980777,0.00148389,113170.0,113160.0,0.3196299]
[1761729981740,0.53405117,113180.0,113170.0,0.19327528]
[1761729981951,0.5575969,113180.0,113170.0,0.31633429]
[1761729982199,0.54859236,113180.0,113170.0,0.31633429]
[1761729982397,0.54859144,113180.0,113170.0,0.31633429]
[1761729982603,0.37188178,113180.0,113170.0,0.31633429]
[1761729982805,0.36133319,113180.0,113170.0,0.36700381]
[1761729983185,0.36333319,113180.0,113170.0,0.36700381]
[1761729983818,0.54004285,113180.0,113170.0,0.36700381]
[1761729984029,0.53804285,113180.0,113170.0,0.31633429]
[1761729984424,0.53804285,113180.0,113170.0,0.31733429]
[1761729985228,0.54708373,113180.0,113170.0,0.31733429]
[1761729988129,0.53804285,113180.0,113170.0,0.30142429]
[1761729988921,0.96164955,113180.0,113170.0,0.09081901]
[1761729989404,3.97031996,113180.0,113170.0,0.09081901]
[1761729989615,3.98938816,113180.0,113170.0,0.09081901]
[1761729990596,3.98938816,113180.0,113170.0,0.08981901]
[1761729990958,3.99038816,113180.0,113170.0,0.08981901]
[1761729991438,4.33038816,113180.0,113170.0,0.08981901]
[1761729991652,4.34907043,113180.0,113170.0,0.08981901]
[1761729993373,3.97724896,113180.0,113170.0,0.08981901]
[1761729995872,3.97724896,113180.0,113150.0,0.19621327]
[1761729995873,0.17674089,113160.0,113150.0,0.19621327]
[1761729996076,0.57134282,113160.0,113150.0,0.28603228]
[1761729996276,0.59547282,113160.0,113150.0,0.28603228]
[1761729996679,0.59547282,113160.0,113150.0,0.27541228]
[1761729996963,0.67335005,113160.0,113150.0,0.27541228]
[1761729997189,0.67335005,113160.0,113150.0,0.09381901]
[1761729997373,0.67435005,113160.0,113150.0,0.09381901]
[1761729998506,0.67335005,113160.0,113150.0,0.09081901]
[1761729999441,3.67335005,113160.0,113150.0,0.09081901]
[1761729999858,4.04500198,113160.0,113150.0,0.09081901]
[1761730000067,3.67335005,113160.0,113150.0,0.09081901]
[1761730001075,4.38500198,113160.0,113150.0,0.001]
[1761730001281,4.40404832,113160.0,113150.0,0.001]
[1761730001693,0.17677214,113140.0,113130.0,0.19624714]
[1761730001900,0.59580791,113140.0,113130.0,0.10043901]
[1761730002107,0.62023791,113140.0,113130.0,0.10043901]
[1761730002732,0.62023791,113140.0,113130.0,0.27722677]
[1761730002942,0.62028621,113140.0,113130.0,0.27822677]
[1761730003141,0.62128621,113140.0,113130.0,0.10443901]
[1761730003369,3.62128621,113140.0,113130.0,0.09381901]